{"text_format":"1","workbook":"xlsx","n_sheets":11,"sheets":["Инф-я","Форма 1.1","Форма 1.2","Форма 2.1","Форма 2.2","форма 2.3","форма 2.4","форма 3 ","НВВ для шаблона ЕИАС","МУ","Выбор оценочного балла"],"not_rendered":{"charts":0,"images":49,"macros":1,"external_links":13,"defined_names":1935,"comments":0,"pivot_tables":0},"unopened":[],"bounds":{"document_bytes":16777216,"sheet_cells":100000,"rows_first":2000,"rows_last":500,"rows_between":2000,"halvings":0,"cell_chars":16384,"cell_head_chars":4096},"cells_cut":0,"cells_raw":0,"read":"whole","date_system":"1900"}

{"sheet":"Инф-я","index":0,"n_rows":113,"n_cols":3,"rows_kept":113,"cut":false,"hidden":false,"merged":[[38,0,38,2],[40,0,40,2],[41,0,41,2],[4,1,4,2],[1,0,1,2],[34,0,34,2],[36,0,36,2],[37,0,37,2],[39,0,39,2]]}
[]
["Расчет НВВ на услуги по передаче электрической энергии,  устанавливаемых с применением метода долгосрочной индексации необходимой валовой выручки"]
[]
[]
[null,"Информация об организации"]
[]
["№ п/п","Требуемая информация","Данные об организации"]
["1.","Наименование организации в соответствии с уставом:","Общество с ограниченной ответственностью \"Энергетик\""]
[null,"сокращенное название организации ","Общество с ограниченной ответственностью \"Энергетик\""]
[null,"полное наименование организации ","ООО \"Энергетик\""]
["2.","Муниципальное образование","Владимирская область, Александровский район"]
["3.","Адрес организации:"]
[null,"юридический адрес","601640, Владимирская обл, г.Карабаново, ул. Вокзальная, д. 9"]
[null,"фактический адрес (месторасположение)","601640, Владимирская обл, г.Карабаново, ул. Вокзальная, д. 9"]
["4.","ИНН",3311023373]
["5.","КПП",331101001]
["6.","ФИО руководителя организации","Окунев Василий Михайлович"]
[null,"контактный телефон/факс","8-49244-5-24-72"]
[null,"е-mail","оао-energetik@yandex.ru"]
["7.","ФИО начальника ПЭО","Ивановский Михаил Владимирович"]
[null,"контактный телефон/факс","8-49244-5-26-01"]
["8.","ФИО ответственного за электрохозяйство"]
[null,"контактный телефон/факс"]
["9.","ФИО главного бухгалтера","Макарова Галина Юрьевна"]
[null,"контактный телефон/факс","8-49244-5-10-79"]
["10.","ФИО непосредственного исполнителя"]
[null,"контактный телефон/факс"]
[null,"е-mail","оао-energetik@yandex.ru"]
["11.","Банковские реквизиты:"]
[null,"расчетный счет","40702810710000002518"]
[null,"банк","Владимирское отделение №8611 ПАО Сбербанк"]
[null,"корреспондентский счет","30101810000000000602"]
[null,"БИК","041708602"]
[]
["В конце книги Excel размещены листы серого цвета для заполнения шаблона \"Расчет фактических показателей надежности и качества за 2017 год\". Согласно п. 14 Постановления Правительства от 31.12.2009 г.  № 1220 организации предоставляют регулирующим органам до 1 апреля года, следующего за отчетным, отчетные данные, используемые при расчете фактических значений показателей надежности и качества."]
[]
["Согласно п. 9 Постановления Правительства РФ от 21.01.2004 г. № 24 \"Об утверждении стандартов раскрытия информации субъектами оптового и розничных рынков электрической энергии\":"]
["\"Субъекты рынков электрической энергии раскрывают следующую информацию:"]
["г) предложение о размере цен (тарифов), долгосрочных параметров регулирования (при применении метода доходности инвестированного капитала или метода долгосрочной необходимой валовой выручки), подлежащих регулированию в соответствии с Основами ценообразования в области регулируемых цен (тарифов) в электроэнергетике, утвержденными постановлением Правительства Российской Федерации от 29 декабря 2011 г. № 1178\"."]
["Указанная в подпункте \"г\" пункта 9 настоящего документа информация подлежит раскрытию на официальных сайтах регулируемых организаций или на ином официальном сайте в сети Интернет, определяемом Правительством Российской Федерации, и (или) в периодическом печатном издании, в котором публикуются нормативные правовые акты органа исполнительной власти в области регулирования тарифов, - за 10 дней до представления в регулирующий орган предложения об установлении цен (тарифов) и (или) их предельных уровней, содержащего такую информацию"]
["Согласно п. 9.1 Правил государственного регулирования (пересмотра, применения) цен (тарифов) в электроэнергктике, утвержденных постановлением Правительства РФ от 29 декабря 2011 г. N 1178:"]
["\"Регулирующий орган отказывает в открытии дела об установлении цены (тарифа), в случае если регулируемая организация не опубликовала предложение о размере цен (тарифов) и долгосрочных параметров регулирования (при применении метода доходности инвестированного капитала или метода долгосрочной индексации необходимой валовой выручки), подлежащих регулированию, в порядке, установленном стандартами раскрытия информации субъектами оптового и розничных рынков электрической энергии, утвержденными постановлением Правительства Российской Федерации от 21 января 2004 г. N 24, или указанное опубликованное предложение не соответствует предложению, представляемому в орган регулирования\"."]
[]
[]
[]
[]
[]
[]
[]
[]
[]
[]
[]
[]
[]
[]
[]
[]
[]
[]
[]
[]
[]
[]
[]
[]
[]
[]
[]
[]
[]
[]
[]
[]
[]
[]
[]
[]
[]
[]
[]
[]
[]
[]
[]
[]
[]
[]
[]
[]
[]
[]
[]
[]
[]
[]
[]
[]
[]
[]
[1,"ООО «Радугагорэнерго»"]
[2,"МУП «Горэлектросеть» г. Муром"]
[3,"МУП «Александровэлектросеть»"]
[4,"ООО «СтройГарант»"]
[5,"ООО «Костеревские городские электрические сети»"]
[6,"ООО «Ковровэлектросетьремонт»"]
[7,"ООО «ПромРЭС»"]
[8,"ООО «ПромЭнерго» г. Судогда"]
[9,"ОАО «Энергетик» г. Карабаново"]
[10,"ООО «Электросистемы» "]
[11,"ООО «Ярцево-Энерго»"]
[12,"ПАО «Ставровский завод АТО»"]
[13,"ООО «ЭнергоАктив»"]

{"sheet":"Форма 1.1","index":1,"n_rows":27,"n_cols":4,"rows_kept":27,"cut":false,"hidden":false,"merged":[[1,0,1,3],[5,0,5,3],[26,0,29,3],[3,1,3,3],[21,0,21,1],[21,2,21,4]]}
[]
["Форма 1.1 - Журнал учета текущей информации о прекращении передачи электрической энергии для потребителей услуг за 2017 год   "]
[]
[null,{"$f":"'Инф-я'!C9","v":"Общество с ограниченной ответственностью \"Энергетик\""}]
[]
["(наименование территориальной сетевой организации)"]
["№","Период","Продолжительность прекращения,\nчас.","Количество точек присоединения потребителей услуг к электрической сети электросетевой организации, шт."]
[1,2,3,4]
[1,"январь",null,2542]
[2,"февраль",null,2543]
[3,"март",null,2543]
[4,"апрель",null,2547]
[5,"май",5.42,2548]
[6,"июнь",1.1659999999999999,2547]
[7,"июль",null,2544]
[8,"август",null,2544]
[9,"сентябрь",null,2541]
[10,"октябрь",null,2542]
[11,"ноябрь",1,2543]
[12,"декабрь",0.83,2544]
[]
["Руководитель организации",null,{"$f":"'Инф-я'!$C$17","v":"Окунев Василий Михайлович"}]
[]
[]
[]
[]
["Согласно п. 14 Постановления Правительства от 31.12.2009 г.  № 1220 организации предоставляют регулирующим органам до 1 апреля года, следующего за отчетным, отчетные данные, используемые при расчете фактических значений показателей надежности и качества"]

{"sheet":"Форма 1.2","index":2,"n_rows":10,"n_cols":6,"rows_kept":10,"cut":false,"hidden":false,"merged":[[9,1,9,2],[9,3,9,5],[1,0,1,4],[2,0,2,4],[3,0,3,4],[5,0,5,2],[6,0,6,2],[7,0,7,2]]}
[]
["Форма 1.2 - Расчет фактического показателя средней продолжительности прекращений передачи электрической энергии за 2017 год"]
[{"$f":"'Инф-я'!C9","v":"Общество с ограниченной ответственностью \"Энергетик\""}]
["(наименование территориальной сетевой организации)"]
[]
["Максимальное за расчетный период",null,null,"Максимальное за расчетный период регулирования число точек присоединения  потребителей услуг к э. сети ТСО, шт.",{"$f":"MAX('Форма 1.1'!D9:D20)","v":2548}," "]
["Суммарная продолжительность прекращений передачи электрической энергии, час. (Тпр)",null,null,"гр. 3 формы 1.1",{"$f":"SUM('Форма 1.1'!C9:C20)","v":8.4160000000000004}]
["Показатель средней продолжительности прекращений передачи электрической энергии (Пп)",null,null,"Пп = Тпр/Nтп",{"$f":"IF(E6=0,0,E7/E6)","v":3.3029827315541604E-3}]
[]
[null,"Руководитель организации",null,{"$f":"'Инф-я'!$C$17","v":"Окунев Василий Михайлович"}]

{"sheet":"Форма 2.1","index":3,"n_rows":33,"n_cols":8,"rows_kept":33,"cut":false,"hidden":false,"merged":[[32,2,32,4],[35,2,35,4],[35,5,35,7],[37,5,37,7],[25,5,25,6],[26,5,26,6],[27,5,27,6],[28,5,28,6],[29,5,29,6],[30,5,30,6],[24,5,24,6],[13,5,13,6],[14,5,14,6],[15,5,15,6],[16,5,16,6],[17,5,17,6],[18,5,18,6],[19,5,19,6],[20,5,20,6],[21,5,21,6],[22,5,22,6],[23,5,23,6],[32,0,32,1],[12,5,12,6],[0,0,0,7],[1,0,1,7],[2,0,2,7],[5,0,6,0],[5,1,6,1],[5,2,5,3],[5,4,6,4],[5,5,6,6],[5,7,6,7],[7,5,7,6],[8,5,8,6],[9,5,9,6],[10,5,10,6],[11,5,11,6]]}
["Форма 2.1 - Расчет значения индикатора информативности за 2017 год"]
[{"$f":"'Инф-я'!C9","v":"Общество с ограниченной ответственностью \"Энергетик\""}]
["(наименование территориальной сетевой организации)"]
[]
[]
["Наименование параметра (критерия), характеризующего индикатор","Ед.изм-ния","Значение",null,"Ф / П * 100, %","Зависи-мость",null,"Оценочный балл "]
[null,null,"факти-ческое\n(Ф)","плановое\n(П)"]
[1,null,2,3,4,5,null,6]
["1. Возможность личного приема заявителей и потребителей услуг уполномоченными должностными лицами территориальной сетевой организации - всего,",null,"-","-","-","-",null,{"$f":"(H11+H12)/2","v":2}]
["в том числе, по критериям:"]
["1.1. Количество структурных подразделений по работе с заявителями и потребителями услуг в процентном отношении к общему количеству структурных подразделений","%",0.33,0.33,{"$f":"(IF(AND(D11=0,C11=0),1,IF(AND(D11=0,C11>0),1.2,C11/D11)))","v":1},"прямая",null,{"$f":"IF(E11<80%,3,IF(E11>120%,1,2))","v":2}]
["1.2. Количество утвержденных территориальной сетевой организацией в установленном порядке организационно-распорядительных документов по вопросам работы с заявителями и потребителями услуг - всего, шт.","шт.",10,10,{"$f":"(IF(AND(D12=0,C12=0),1,IF(AND(D12=0,C12>0),1.2,C12/D12)))","v":1},"прямая",null,{"$f":"IF(E12<80%,3,IF(E12>120%,1,2))","v":2}]
["в том числе:"]
["а) регламенты оказания услуг и рассмотрения обращений заявителей и потребителей услуг, шт.","шт.",0,0,{"$f":"(IF(AND(D14=0,C14=0),1,IF(AND(D14=0,C14>0),1.2,C14/D14)))","v":1},"прямая",null,"-"]
["б) наличие положения о деятельности структурного подразделения по работе \nс заявителями и потребителями услуг ‎(наличие - 1, отсутствие - ‎‎0), шт.‎","шт.",0,0,{"$f":"(IF(AND(D15=0,C15=0),1,IF(AND(D15=0,C15>0),1.2,C15/D15)))","v":1},"прямая",null,"-"]
["в) должностные инструкции сотрудников, обслуживающих заявителей и потребителей услуг, шт.","шт.",8,8,{"$f":"(IF(AND(D16=0,C16=0),1,IF(AND(D16=0,C16>0),1.2,C16/D16)))","v":1},"прямая",null,"-"]
["г) утвержденные территориальной сетевой организацией в установленном порядке формы отчетности о работе с заявителями и потребителями услуг, шт.","шт.",2,2,{"$f":"(IF(AND(D17=0,C17=0),1,IF(AND(D17=0,C17>0),1.2,C17/D17)))","v":1},"прямая",null,"-"]
["2. Наличие телефонной связи для обращений потребителей услуг к уполномоченным должностным лицам территориальной сетевой организации,",null,"-","-","-","-",null,{"$f":"(H20+H21+H22)/3","v":2.3333333333333335}]
["в том числе по критериям:"]
["2.1. Наличие единого телефонного номера для приема обращений потребителей услуг (наличие - 1, отсутствие - 0)","(наличие - 1, отсутствие - 0)",1,1,{"$f":"(IF(AND(D20=0,C20=0),1,IF(AND(D20=0,C20>0),1.2,C20/D20)))","v":1},"прямая",null,{"$f":"IF(E20<80%,3,IF(E20>120%,1,2))","v":2}]
["2.2. Наличие информационно-справочной системы для автоматизации обработки обращений потребителей услуг, поступивших по телефону (наличие - 1, отсутствие - 0)","(наличие - 1, отсутствие - 0)",0,1,{"$f":"(IF(AND(D21=0,C21=0),1,IF(AND(D21=0,C21>0),1.2,C21/D21)))","v":0},"прямая",null,{"$f":"IF(E21<80%,3,IF(E21>120%,1,2))","v":3}]
["2.3. Наличие системы автоинформирования потребителей услуг по телефону, предназначенной для доведения до них типовой информации (наличие - 1, отсутствие - 0)","(наличие - 1, отсутствие - 0)",0,0,{"$f":"(IF(AND(D22=0,C22=0),1,IF(AND(D22=0,C22>0),1.2,C22/D22)))","v":1},"прямая",null,{"$f":"IF(E22<80%,3,IF(E22>120%,1,2))","v":2}]
["3. Наличие в сети Интернет сайта территориальной сетевой организации с возможностью обмена информацией с потребителями услуг посредством электронной почты (наличие - 1, отсутствие - 0)","(наличие - 1, отсутствие - 0)",1,1,{"$f":"(IF(AND(D23=0,C23=0),1,IF(AND(D23=0,C23>0),1.2,C23/D23)))","v":1},"прямая",null,{"$f":"IF(E23<80%,3,IF(E23>120%,1,2))","v":2}]
["4. Проведение мероприятий по доведению до сведения потребителей услуг необходимой информации, в том числе путем ее размещения в сети Интернет, на бумажных носителях или иными доступными способами (проведение - 1, отсутствие - 0)","(наличие - 1, отсутствие - 0)",1,1,{"$f":"(IF(AND(D24=0,C24=0),1,IF(AND(D24=0,C24>0),1.2,C24/D24)))","v":1},"прямая",null,{"$f":"IF(E24<80%,3,IF(E24>120%,1,2))","v":2}]
["5. Простота и доступность схемы обжалования потребителями услуг действий должностных лиц территориальной сетевой организации, по критерию",null,"-","-","-","-",null,{"$f":"H26","v":2}]
["5.1. Общее количество обращений потребителей услуг о проведении консультаций по порядку обжалования действий (бездействия) территориальной сетевой организации в ходе исполнения своих функций в процентах от общего количества поступивших обращений","%",0,0,{"$f":"(IF(AND(D26=0,C26=0),1,IF(AND(D26=0,C26>0),1.2,C26/D26)))","v":1},"обратная",null,{"$f":"IF(E26<80%,1,IF(E26>120%,3,2))","v":2}]
["6. Степень полноты, актуальности и достоверности предоставляемой потребителям услуг информации о деятельности территориальной сетевой организации - всего,",null,"-","-","-","-",null,{"$f":"(H29+H30)/2","v":2}]
["в том числе по критериям:"]
["6.1. Общее количество обращений потребителей услуг о проведении консультаций по вопросам деятельности территориальной сетевой организации в процентах от общего количества поступивших обращений","%",0,0,{"$f":"(IF(AND(D29=0,C29=0),1,IF(AND(D29=0,C29>0),1.2,C29/D29)))","v":1},"обратная",null,{"$f":"IF(E29<80%,1,IF(E29>120%,3,2))","v":2}]
["6.2. Количество обращений потребителей услуг с указанием на отсутствие необходимой информации, которая должна быть раскрыта территориальной сетевой организацией в соответствии с нормативными правовыми актами, в процентах от общего количества поступивших обращений","%",0,0,{"$f":"(IF(AND(D30=0,C30=0),1,IF(AND(D30=0,C30>0),1.2,C30/D30)))","v":1},"обратная",null,{"$f":"IF(E30<80%,1,IF(E30>120%,3,2))","v":2}]
["7. Итого по индикатору \nинформативности (Ин)","-","-","-","-","-",null,{"$f":"(H9+H18+H23+H24+H25+H27)/6","v":2.0555555555555558}]
[]
["Руководитель организации",null,{"$f":"'Инф-я'!$C$17","v":"Окунев Василий Михайлович"}]

{"sheet":"Форма 2.2","index":4,"n_rows":28,"n_cols":8,"rows_kept":28,"cut":false,"hidden":false,"merged":[[8,0,8,1],[28,3,28,5],[28,6,28,7],[30,6,30,7],[30,8,30,10],[27,1,27,2],[27,3,27,5],[2,0,2,7],[3,0,3,7],[4,1,4,7],[6,0,7,1],[6,2,7,2],[6,3,6,4],[6,5,7,5],[6,6,7,6],[6,7,7,7]]}
[]
[]
["Форма 2.2 - Расчет значения индикатора исполнительности за 2017 год"]
[{"$f":"'Инф-я'!C9","v":"Общество с ограниченной ответственностью \"Энергетик\""}]
[null,"(наименование территориальной сетевой организации)"]
[]
["Наименование параметра (показателя), характеризующего индикатор",null,"Ед.изм-ния","Значение",null,"Ф / П * 100, %","Зависи-мость","Оценочный балл "]
[null,null,null,"факти-ческое\n(Ф)","плановое\n(П)"]
[1,null,null,2,3,4,5,6]
[null,"1. Соблюдение сроков по процедурам взаимодействия с потребителями услуг (заявителями) - всего",null,"-","-","-","-",{"$f":"(H12+H16)/2","v":0.5}]
[null,"в том числе, по критериям:"]
[null,"1.1. Среднее время, затраченное территориальной сетевой организацией на направление проекта договора оказания услуг по передаче электрической энергии потребителю услуг (заявителю), дней\n","дней",3,3,{"$f":"(IF(AND(E12=0,D12=0),1,IF(AND(E12=0,D12>0),1.2,D12/E12)))","v":1},"обратная",{"$f":"IF(F12<80%,0.25,IF(F12>120%,0.75,0.5))","v":0.5}]
[null,"1.2. Среднее время, необходимое для оборудования точки поставки приборами учета с момента подачи заявления потребителем услуг:","дней","-","-","-","обратная","-"]
[null,"а) для физических лиц, включая индивидуальных предпринимателей, и юридических лиц - субъектов малого и среднего предпринимательства, дней",null,3,3,null,"-","-"]
[null,"б) для остальных потребителей услуг, дней",null,null,null,null,"-","-"]
[null,"1.3. Количество случаев отказа от заключения и случаев расторжения потребителем услуг договоров оказания услуг по передаче электрической энергии, процентов от общего количества заключенных территориальной сетевой организацией договоров с потребителями услуг (заявителями), кроме физических лиц",null,1E-3,1E-3,{"$f":"(IF(AND(E16=0,D16=0),1,IF(AND(E16=0,D16>0),1.2,D16/E16)))","v":1},"обратная",{"$f":"IF(F16<80%,0.25,IF(F16>120%,0.75,0.5))","v":0.5}]
[null,"2. Соблюдение требований нормативных правовых актов Российской Федерации по поддержанию качества электрической энергии, по критерию",null,"-","-","-","-",{"$f":"(H18)","v":0.5}]
[null,"2.1. Количество обращений потребителей услуг с указанием на ненадлежащее качество электрической энергии, процентов от общего количества поступивших обращений\n","дней",1E-3,1E-3,{"$f":"(IF(AND(E18=0,D18=0),1,IF(AND(E18=0,D18>0),1.2,D18/E18)))","v":1},"обратная",{"$f":"IF(F18<80%,0.25,IF(F18>120%,0.75,0.5))","v":0.5}]
[null,"3. Наличие взаимодействия с потребителями услуг при выводе оборудования в ремонт и (или) из эксплуатации",null,"-","-","-","-",{"$f":"(H21+H22)/2","v":0.5}]
[null,"в том числе, по критериям:"]
[null,"3.1.  Наличие (отсутствие) установленной процедуры согласования с потребителями услуг графиков вывода электросетевого оборудования в ремонт и (или) из эксплуатации\n(наличие - 1, отсутствие - 0)","%",0.01,0.01,{"$f":"(IF(AND(E21=0,D21=0),1,IF(AND(E21=0,D21>0),1.2,D21/E21)))","v":1},"обратная",{"$f":"IF(F21<80%,0.25,IF(F21>120%,0.75,0.5))","v":0.5}]
[null,"3.2. Количество обращений потребителей услуг с указанием на несогласие введения предлагаемых территориальной сетевой организацией графиков вывода электросетевого оборудования в ремонт и (или) из эксплуатации, процентов от общего количества поступивших обращений, кроме физических лиц",null,0.02,0,{"$f":"(IF(AND(E22=0,D22=0),1,IF(AND(E22=0,D22>0),1.2,D22/E22)))","v":1.2},"обратная",{"$f":"IF(F22<80%,0.25,IF(F22>120%,0.75,0.5))","v":0.5}]
[null,"4. Соблюдение требований нормативных правовых актов по защите персональных данных потребителей услуг (заявителей), по критерию",null,"-","-","-","-",{"$f":"H24","v":0.1}]
[null,"4.1. Количество установленных вступившим в законную силу решением антимонопольного органа и (или) суда нарушений территориальной сетевой организацией требований в части государственного регулирования цен (тарифов), в процентах от общего количества поступивших заявок на технологическое присоединение","%",0,1E-4,{"$f":"(IF(AND(E24=0,D24=0),1,IF(AND(E24=0,D24>0),1.2,D24/E24)))","v":0},"обратная",{"$f":"IF(F24<80%,0.1,IF(F24>120%,0.3,0.2))","v":0.1}]
[null,"5. Итого по индикатору \nисполнительности (Ис)","-","-","-","-","-",{"$f":"(H10+H17+H19+H23)/4","v":0.4}]
[]
[]
[null,"Руководитель организации",null,{"$f":"'Инф-я'!$C$17","v":"Окунев Василий Михайлович"}]

{"sheet":"форма 2.3","index":5,"n_rows":36,"n_cols":8,"rows_kept":36,"cut":false,"hidden":false,"merged":[[33,2,33,4],[33,5,33,7],[35,5,35,7],[2,0,2,7],[3,0,3,7],[4,0,4,7],[6,0,7,0],[6,1,7,1],[6,2,6,3],[6,4,7,4],[6,5,7,5],[6,7,7,7],[35,0,35,1],[35,2,35,4]]}
[]
[]
["Форма 2.3 - Расчет значения индикатора результативности обратной связи за 2017 год"]
[{"$f":"'Инф-я'!C9","v":"Общество с ограниченной ответственностью \"Энергетик\""}]
["(наименование территориальной сетевой организации)"]
[]
["Наименование параметра (показателя), характеризующего индикатор","Ед.изм-ния","Значение",null,"Ф / П * 100, %","Зависи-мость",null,"Оценочный балл "]
[null,null,"факти-ческое\n(Ф)","плановое\n(П)"]
[null,null,2,3,4,5,null,6]
["1. Наличие структурного подразделения территориальной сетевой организации по рассмотрению, обработке и принятию мер по обращениям потребителей услуг (наличие - 1, отсутствие - 0)","(наличие - 1, отсутствие - 0)",1,1,{"$f":"(IF(AND(D10=0,C10=0),1,IF(AND(D10=0,C10>0),1.2,C10/D10)))","v":1},"прямая",null,{"$f":"IF(E10<80%,3,IF(E10>120%,1,2))","v":2}]
["2. Степень удовлетворения обращений потребителей услуг",null,"-","-","-","-",null,{"$f":"(H13+H14+H15+H16+H17+H18)/6","v":2}]
["в том числе по критериям:"]
["2.1. Общее количество обращений потребителей услуг с указанием на ненадлежащее качество услуг по передаче электрической энергии и обслуживание, в процентах от общего количества поступивших обращений","%",0,0,{"$f":"(IF(AND(D13=0,C13=0),1,IF(AND(D13=0,C13>0),1.2,C13/D13)))","v":1},"обратная",null,{"$f":"IF(E13<80%,1,IF(E13>120%,3,2))","v":2}]
["2.2. Количество принятых мер по результатам рассмотрения обращений потребителей услуг с указанием на ненадлежащее качество услуг по передаче электрической энергии и обслуживание, в процентах от общего количества поступивших обращений","%",0,0,1,"прямая",null,{"$f":"IF(E14<80%,3,IF(E14>120%,1,2))","v":2}]
["2.3. Количество обращений, связанных с неудовлетворенностью принятыми мерами, указанными в п. 2.2 настоящей формы, поступивших от потребителей услуг в течение 30 рабочих дней после завершения мероприятий, указанных в п. 2.2 настоящей формы, в процентах от общего количества поступивших обращений","%",0,0,1,"обратная",null,{"$f":"IF(E15<80%,1,IF(E15>120%,3,2))","v":2}]
["2.4. Количество обращений потребителей услуг с указанием на ненадлежащее качество услуг, оказываемых территориальной сетевой организацией, поступивших в соответствующий контролирующий орган исполнительной власти, в процентах от общего количества поступивших обращений","%",0,0,1,"обратная",null,{"$f":"IF(E16<80%,1,IF(E16>120%,3,2))","v":2}]
["2.5. Количество отзывов и предложений по вопросам деятельности территориальной сетевой организации, поступивших через обратную связь, в процентах от общего количества поступивших обращений","%",0,0,1,"прямая",null,{"$f":"IF(E17<80%,3,IF(E17>120%,1,2))","v":2}]
["2.6. Количество реализованных изменений в деятельности организации, направленных на повышение качества обслуживания потребителей услуг, шт.","шт.",0,0,1,"прямая",null,{"$f":"IF(E18<80%,3,IF(E18>120%,1,2))","v":2}]
["3. Оперативность реагирования на обращения потребителей услуг - всего,",null,"-","-","-","-",null,{"$f":"(H21+H22)/2","v":2}]
["в том числе по критериям:"]
["3.1. Средняя продолжительность времени принятия мер по результатам обращения потребителя услуг, дней","дней",0,0,{"$f":"(IF(AND(D21=0,C21=0),1,IF(AND(D21=0,C21>0),1.2,C21/D21)))","v":1},"обратная",null,{"$f":"IF(E21<80%,1,IF(E21>120%,3,2))","v":2}]
["3.2. Взаимодействие территориальной сетевой организации с потребителями услуг с целью получения информации о качестве обслуживания, реализованное посредством:",null,"-","-","-","-",null,{"$f":"(H23+H24+H25)/3","v":2}]
["а) письменных опросов, шт. на 1000 потребителей услуг","шт. на 1000 потребителей услуг",0,0,1,"прямая",null,{"$f":"IF(E23<80%,3,IF(E23>120%,1,2))","v":2}]
["б) электронной связи через сеть Интернет, шт. на 1000 потребителей услуг","шт. на 1000 потребителей услуг",0,0,1,"прямая",null,{"$f":"IF(E24<80%,3,IF(E24>120%,1,2))","v":2}]
["в) системы автоинформирования,шт. на 1000 потребителей услуг","шт. на 1000 потребителей услуг",0,0,1,"прямая",null,{"$f":"IF(E25<80%,3,IF(E25>120%,1,2))","v":2}]
["4. Индивидуальность подхода к потребителям услуг льготных категорий, по критерию",null,"-","-","-","-",null,{"$f":"H27","v":2}]
["4.1. Количество обращений потребителей услуг льготных категорий с указанием на неудовлетворительность качества их обслуживания, шт. на 1000 потребителей услуг","шт. на 1000 потребителей услуг",0,0,1,"обратная",null,{"$f":"IF(E27<80%,1,IF(E27>120%,3,2))","v":2}]
["5. Оперативность возмещения убытков потребителям услуг при несоблюдении территориальной сетевой организацией обязательств, предусмотренных нормативными правовыми актами и договорами",null,"-","-","-","-",null,{"$f":"(H30+H31)/2","v":2}]
["в том числе по критериям:"]
["5.1. Средняя продолжительность времени на принятие территориальной сетевой организацией мер по возмещению потребителю услуг убытков, месяцев","месяцев",0,0,{"$f":"(IF(AND(D30=0,C30=0),1,IF(AND(D30=0,C30>0),1.2,C30/D30)))","v":1},"обратная",null,{"$f":"IF(E30<80%,1,IF(E30>120%,3,2))","v":2}]
["5.2. Доля потребителей услуг, получивших возмещение убытков, возникших в результате неисполнения (ненадлежащего исполнения) территориальной сетевой организацией своих обязательств, от числа потребителей, в пользу которых было вынесено судебное решение, или возмещение было произведено во внесудебном порядке, %","%",0,0,1,"прямая",null,{"$f":"IF(E31<80%,3,IF(E31>120%,1,2))","v":2}]
["6. Итого по индикатору результативности обратной связи (Рс)","-","-","-","-","-",null,{"$f":"(H10+H11+H19+H26+H28)/5","v":2}]
[]
[]
[]
["Руководитель организации",null,{"$f":"'Инф-я'!$C$17","v":"Окунев Василий Михайлович"}]

{"sheet":"форма 2.4","index":6,"n_rows":16,"n_cols":3,"rows_kept":16,"cut":false,"hidden":false,"merged":[[15,1,15,2],[18,1,18,2],[3,0,3,2],[1,0,2,2],[4,0,4,2],[5,0,5,2],[7,1,9,1],[8,0,9,0],[14,0,14,2]]}
[]
["Форма 2.4 - Расчет фактического значения показателя уровня качества оказываемых услуг территориальной (прочей) сетевой организацией за 2017 год"]
[]
[{"$f":"'Инф-я'!C9","v":"Общество с ограниченной ответственностью \"Энергетик\""}]
[]
["(наименование территориальной сетевой организации)"]
[]
[null,"Ед.изм-ния"]
["Предлагаемые плановые значения параметров (критериев), характеризующих индикаторы качества **",null,"2016"]
[null,null,"(год)"]
["Ин (индикатор информативности) ",null,{"$f":"'Форма 2.1'!H31","v":2.0555555555555558}]
["Ис ( индикатор исполнительности)",null,{"$f":"ROUND('Форма 2.2'!H25,3)","v":0.4}]
["Рс (индикатор результативности обратной связи)",null,{"$f":"'форма 2.3'!H32","v":2}]
["Фактическое значение показателя уровня качества оказываемых услуг территориальной сетевой организации",null,{"$f":"0.1*C11+0.7*C12+0.2*C13","v":0.88555555555555565}]
[]
["Руководитель организации",{"$f":"'Инф-я'!$C$17","v":"Окунев Василий Михайлович"}]

{"sheet":"форма 3 ","index":7,"n_rows":39,"n_cols":4,"rows_kept":39,"cut":false,"hidden":false,"merged":[[20,1,20,2],[21,0,21,2],[22,0,22,2],[26,0,26,3],[36,0,36,2],[28,1,28,2],[29,1,29,2],[30,1,30,2],[31,0,31,2],[32,0,32,2],[35,0,35,3],[38,0,38,1],[38,2,38,4],[9,1,9,2],[0,0,1,3],[4,0,4,3],[6,0,6,3],[7,1,7,2],[8,1,8,2],[27,1,27,2],[10,1,10,2],[11,0,11,2],[12,0,12,2],[16,0,16,3],[17,1,17,2],[18,1,18,2],[19,1,19,2]]}
["Формы, используемые для расчета значений показателей уровня качества оказываемых услуг"]
[]
[]
[]
[{"$f":"'Инф-я'!C9","v":"Общество с ограниченной ответственностью \"Энергетик\""}]
[null,null,null,"Форма 3.1"]
["Отчетные данные для расчета значения показателя качества рассмотрения заявок на технологическое присоединение к сети за 2017 год"]
["№ п/п","Наименование",null,"Значение"]
[1,2,null,3]
[1,"Число заявок на технологическое присоединение к сети, поданных в соответствии с требованиями нормативных правовых актов, по которым сетевой организацией в соответствующий расчетный период направлен проект договора об осуществлении технологического присоединения заявителей к сети, шт. (Nзаяв_тпр)",null,"18"]
[2,"Число заявок на технологическое присоединение к сети, поданных в соответствии с требованиями нормативных правовых актов, по которым сетевой организацией в соответствующий расчетный период направлен проект договора об осуществлении технологического присоединения заявителей к сети с нарушением установленных сроков его направления, шт. (Nнсзаяв_тпр)"]
["max (1, Nзаяв_тпр - Nнсзаяв_тпр)",null,null,{"$f":"MAX(1,D10-D11)","v":18}]
["Пзаяв_тпр",null,null,{"$f":"IF(D10=\"\",1,IF(D10=\"0\",1,D10/D12))","v":1}]
[]
[]
[null,null,null,"Форма 3.2"]
["Отчетные данные для расчета значения показателя качества исполнения договоров об осуществлении технологического присоединения заявителей к сети за 2017 год"]
["№ п/п","Наименование",null,"Значение"]
[1,2,null,3]
[1,"Число договоров об осуществлении технологического присоединения заявителей к сети, исполненных в соответствующем расчетном периоде, по которым имеется подписанный сторонами акт о технологическом присоединении, шт. (Nсд_тпр)",null,"18"]
[2,"Число договоров об осуществлении технологического присоединения заявителей к сети, исполненных в соответствующем расчетном периоде, по которым имеется подписанный сторонами акт о технологическом присоединении, по которым произошло нарушение установленных сроков технологического присоединения, шт. (Nнссд_тпр)"]
["max (1, Nсд_тпр - Nнссд_тпр)",null,null,{"$f":"MAX(1,D20-D21)","v":18}]
["Пнс_тпр",null,null,{"$f":"IF(D20=\"\",1,IF(D20=\"0\",1,D20/D22))","v":1}]
[]
[]
[null,null,null,"Форма 3.3"]
["Отчетные данные для расчета значения показателя соблюдения антимонопольного законодательства при технологическом присоединении заявителей к электрическим сетям сетевой организации за 2017 год"]
["№ п/п","Наименование",null,"Значение"]
[1,2,null,3]
[1,"Число вступивших в законную силу решений антимонопольного органа и (или) суда об установлении нарушений сетевой организацией требований антимонопольного законодательства Российской Федерации в части оказания услуг по технологическому присоединению в соответствующем расчетном периоде, шт. (Nн_тпр)"]
[2,"Общее число заявок на технологическое присоединение к сети, поданных заявителями в соответствующий расчетный период, в десятках шт. без округления (Nочз_тпр)",null,"2"]
["max (1, Nочз_тпр - Nн_тпр)",null,null,{"$f":"MAX(1,D31-D30)","v":2}]
["Пнпа_тпр",null,null,{"$f":"IF(D31=\"\",1,IF(D31=\"0\",1,D31/D32))","v":1}]
[]
[]
["Показатель уровня качества осуществляемого технологического присоединения к сети за 2017 год, Птпр"]
["Птпр",null,null,{"$f":"0.4*D13+0.4*D23+0.2*D33","v":1}]
[]
["Руководитель организации",null,{"$f":"'Инф-я'!$C$17","v":"Окунев Василий Михайлович"}]

{"sheet":"НВВ для шаблона ЕИАС","index":8,"n_rows":86,"n_cols":71,"rows_kept":86,"cut":false,"hidden":true,"merged":[[84,1,84,2],[85,1,85,2],[78,1,78,2],[79,1,79,2],[80,1,80,2],[81,1,81,2],[82,1,82,2],[83,1,83,2],[72,1,72,2],[73,1,73,2],[74,1,74,2],[75,1,75,2],[76,1,76,2],[77,1,77,2],[66,1,66,2],[67,1,67,2],[68,1,68,2],[69,1,69,2],[70,1,70,2],[71,1,71,2],[60,1,60,2],[61,1,61,2],[62,1,62,2],[63,1,63,2],[64,1,64,2],[65,1,65,2],[54,1,54,2],[55,1,55,2],[56,1,56,2],[57,1,57,2],[58,1,58,2],[59,1,59,2],[48,1,48,2],[49,1,49,2],[50,1,50,2],[51,1,51,2],[52,1,52,2],[53,1,53,2],[17,3,17,5],[17,6,17,8],[44,3,44,5],[46,1,46,2],[47,1,47,2],[2,50,3,50],[2,51,3,51],[2,52,3,52],[6,0,11,0],[14,3,14,5],[15,0,15,2],[2,44,3,44],[2,45,3,45],[2,46,3,46],[2,47,3,47],[2,48,3,48],[2,49,3,49],[2,38,3,38],[2,39,3,39],[2,40,3,40],[2,41,3,41],[2,42,3,42],[2,43,3,43],[2,36,3,36],[16,0,16,8],[1,68,3,68],[1,0,4,0],[1,1,4,1],[1,12,1,32],[1,33,1,52],[1,53,3,53],[2,9,3,9],[2,10,3,10],[2,11,3,11],[2,12,3,12],[2,21,3,21],[2,22,3,22],[2,23,3,23],[2,24,3,24],[2,13,3,13],[2,14,3,14],[2,15,3,15],[2,16,3,16],[2,17,3,17],[2,18,3,18],[2,31,3,31],[2,32,3,32],[2,33,3,33],[2,2,3,2],[2,3,3,3],[2,4,3,4],[2,5,3,5],[2,6,3,6],[2,7,3,7],[2,8,3,8],[1,61,3,61],[1,62,3,62],[1,54,3,54],[1,55,2,56],[1,57,3,57],[1,58,3,58],[1,59,3,59],[1,60,3,60],[2,19,3,19],[2,20,3,20],[1,2,1,11],[2,37,3,37],[2,34,2,35],[1,69,3,69],[2,25,3,25],[2,26,3,26],[2,27,3,27],[2,28,3,28],[2,29,3,29],[2,30,3,30],[1,70,3,70],[1,63,3,63],[1,64,2,65],[1,66,3,66],[1,67,3,67]]}
[" "]
["Наименование организации","Период","Расчет коэффициента индексации",null,null,null,null,null,null,null,null,null,"Расчет подконтрольных расходов",null,null,null,null,null,null,null,null,null,null,null,null,null,null,null,null,null,null,null,null,"Расчет неподконтрольных расходов",null,null,null,null,null,null,null,null,null,null,null,null,null,null,null,null,null,null,null,"Расходы, связанные с компенсацией незапланированных расходов или полученного избытка","Итого НВВ на содержание сетей","в том числе",null,"Доля стороннего отпуска в сеть от организаций, занимающихся несколькими видами деятельности (без собственных нужд)","Отношение НВВ на содержание сетей текущего года к предыдущему года","Поступление в сеть электроэнергии","Объем технологического расхода (потерь)","Тариф на покупку потерь ","Норматив техноло-гического расхода (потерь) электро-энергии ","Итого расходов на оплату потерь","в том числе",null,"Прирост расходов на оплату потерь текущего года к предыдущему году","Поступление в сеть мощности","Уровень надежности реализуемых товаров (услуг) \n(П п)","Уровень качества реализуемых товаров (услуг) \n(П тсо)","Уровень качества реализуемых товаров (услуг)\n(П тпр)"]
[null,null,"Инфляция","Индекс эффективности операционных расходов","Количество активов, всего","ВН","СН1","СН2","НН","Индекс изменения количества активов","Коэффициент эластичности затрат по росту активов","Итого коэффициент индексации","Материальные затраты","Сырье, материалы, запасные части, инструмент, топливо","Работы и услуги производственного характера (в т.ч. услуги сторонних организаций по содержанию сетей и распределительных устройств)","Расходы на оплату труда","Прочие расходы, всего, в том числе:","Ремонт основных фондов","Оплата работ и услуг сторонних организаций","услуги связи","Расходы на услуги вневедомственной охраны и коммунального хозяйства","Расходы на юридические и информационные услуги","Расходы на аудиторские и консультационные услуги","Транспортные услуги","Прочие услуги сторонних организаций","Расходы на командировки и представительские","Расходы на подготовку кадров","Расходы на обеспечение нормальных условий труда и мер по технике безопасности","Расходы на страхование","Другие прочие расходы","Электроэнергия на хоз. нужды","Подконтрольные расходы из прибыли","ИТОГО подконтрольные расходы","Оплата услуг ОАО \"ФСК ЕЭС\"","в том числе",null,"Теплоэнергия","Аренда, всего","в том числе аренда объектов электро-\nсетевого комплекса","Налоги (без учета налога на прибыль), всего, в том числе:","плата за землю","Налог на имущество","Прочие налоги и сборы","Отчисления на социальные нужды (ЕСН)","Прочие неподконтрольные расходы","Налог на прибыль, в том числе:","налог на прибыль на капитальные вложения ","Выпадающие доходы по п.87 Основ ценообразования","Амортизация ОС","Прибыль на капитальные вложения","Возврат заемных средств, направляемый на финансирование капитальных вложений","Проверка прибыли на капитальные вложения (не более 12% от НВВ на содержание сетей)","ИТОГО неподконтрольных расходов"]
[null,null,null,null,null,null,null,null,null,null,null,null,null,null,null,null,null,null,null,null,null,null,null,null,null,null,null,null,null,null,null,null,null,null,"Оплата услуг ОАО \"ФСК ЕЭС\"\n1 полугодие","Оплата услуг ОАО \"ФСК ЕЭС\"\n2 полугодие",null,null,null,null,null,null,null,null,null,null,null,null,null,null,null,null,null,null,null,"НВВ на 1 полугодие","НВВ на 2 полугодие",null,null,null,null,null,null,null,"расходы на 1 полугодие","расходы на 2 полугодие"]
[null,null,"%","%","у.е.","у.е.","у.е.","у.е.","у.е.","%",null,null,"тыс.руб","тыс.руб","тыс.руб","тыс.руб","тыс.руб","тыс.руб","тыс.руб","тыс.руб","тыс.руб","тыс.руб","тыс.руб","тыс.руб","тыс.руб","тыс.руб","тыс.руб","тыс.руб","тыс.руб","тыс.руб","тыс.руб","тыс.руб","тыс.руб","тыс.руб","тыс.руб","тыс.руб","тыс.руб","тыс.руб","тыс.руб","тыс.руб","тыс.руб","тыс.руб","тыс.руб","тыс.руб","тыс.руб","тыс.руб","тыс.руб","тыс.руб","тыс.руб","тыс.руб","тыс.руб","%","тыс.руб","тыс.руб","тыс.руб","тыс.руб","тыс.руб","%","%","млн.кВтч","млн.кВтч","руб./МВтч","%","тыс.руб","тыс.руб","тыс.руб","%","МВт"]
["А","Б","0.1","0.2","0.3","0.3.1","0.3.2","0.3.3","0.3.4","0.4","0.5","0.6","1.1","1.1.1","1.1.2","1.2","1.3","1.3.1","1.3.2","1.3.2.1","1.3.2.2","1.3.2.3","1.3.2.4","1.3.2.5","1.3.2.6","1.3.3","1.3.4","1.3.5","1.3.6","1.3.7","1.4","1.5","1.6","2.1","2.1.1","2.1.2","2.2","2.3","2.3.1","2.4","2.4.1","2.4.2","2.4.3","2.5","2.6","2.7","2.7.1","2.8","2.9","2.10","2.11","2.12","2.13","3","4","4.1","4.2","5","6","7","8","9","10","11","11.1","11.2","12","13","14","15.1","15.2"]
[{"$f":"'Инф-я'!C10","v":"ООО \"Энергетик\""},"2014",null,null,{"$f":"SUM(F7:I7)","v":0},null,null,null,null,null,null,null,{"$f":"SUM(N7:O7)","v":0},null,null,null,{"$f":"R7+S7+Z7+AA7+AB7+AC7+AD7+AE7+AF7","v":0},null,{"$f":"SUM(T7:Y7)","v":0},null,null,null,null,null,null,null,null,null,null,null,null,null,{"$f":"M7+P7+Q7","v":0},{"$f":"AI7+AJ7","v":0},null,null,null,null,null,{"$f":"SUM(AO7:AQ7)","v":0},null,null,null,null,null,null,null,null,null,null,null,null,{"$f":"AH7+AK7+AL7+AN7+AS7+AT7+AV7+AR7+AW7+AX7+AY7","v":0},null,{"$f":"SUM(BA7,BB7,AG7)","v":0},null,null,{"$f":"nerr((BD7+BE7)/BC7)","v":{"$error":"#NAME?"}},null,null,null,null,{"$f":"IF(BH7=0,0,BI7/BH7)","v":0},{"$f":"BI7*BJ7","v":0},null,{"$f":"BL7-BM7","v":0}]
[null,"2015",null,null,0,null,null,null,null,{"$f":"IF(E7=0,0,(E8-E7)/E7)","v":0},null,null,0,null,null,null,0,null,0,null,null,null,null,null,null,null,null,null,null,null,null,null,0,0,null,null,null,null,null,0,null,null,null,null,null,null,null,null,null,null,null,{"$f":"nerr((AX8+AY8)/(BC8-AH8-AU8-AX8-AY8-AM8))","v":{"$error":"#NAME?"}},0,null,0,null,null,{"$f":"nerr((BD8+BE8)/BC8)","v":{"$error":"#NAME?"}},{"$f":"nerr((BC8-BC7)/BC7)","v":{"$error":"#NAME?"}},null,null,null,0,0,null,0,{"$f":"nerr((BL8-BL7)/BL7)","v":{"$error":"#NAME?"}}]
[null,"2016",null,null,0,null,null,null,null,{"$f":"IF(E8=0,0,(E9-E8)/E8*K9)","v":0},0.75,{"$f":"(1+C9)*(1-D9)*(1+J9)","v":1},0,{"$f":"N8*$L9","v":0},{"$f":"O8*L9","v":0},{"$f":"P8*$L9","v":0},0,{"$f":"R8*$L9","v":0},0,{"$f":"T8*$L9","v":0},{"$f":"U8*L9","v":0},{"$f":"V8*L9","v":0},{"$f":"W8*$L9","v":0},{"$f":"X8*$L9","v":0},0,0,0,0,0,0,0,0,0,0,null,null,null,null,null,0,null,null,null,null,null,null,null,null,null,null,null,{"$f":"nerr((AX9+AY9)/(BC9-AH9-AU9-AX9-AY9-AM9))","v":{"$error":"#NAME?"}},0,null,0,null,null,{"$f":"nerr((BD9+BE9)/BC9)","v":{"$error":"#NAME?"}},{"$f":"nerr((BC9-BC8)/BC8)","v":{"$error":"#NAME?"}},null,null,null,0,0,null,0,{"$f":"nerr((BL9-BL8)/BL8)","v":{"$error":"#NAME?"}}]
[null,"2017 план",4.7E-2,{"$f":"#REF!","v":{"$error":"#REF!"}},{"$error":"#REF!"},{"$f":"#REF!","v":{"$error":"#REF!"}},{"$f":"#REF!","v":{"$error":"#REF!"}},{"$f":"#REF!","v":{"$error":"#REF!"}},{"$f":"#REF!","v":{"$error":"#REF!"}},{"$f":"IF(E9=0,0,(E10-E9)/E9*K10)","v":0},0.75,{"$f":"(1+C10)*(1-D10)*(1+J10)","v":{"$error":"#REF!"}},{"$error":"#REF!"},{"$f":"N9*$L10","v":{"$error":"#REF!"}},{"$f":"O9*L10","v":{"$error":"#REF!"}},{"$f":"P9*$L10","v":{"$error":"#REF!"}},{"$error":"#REF!"},{"$f":"R9*$L10","v":{"$error":"#REF!"}},{"$error":"#REF!"},{"$f":"T9*$L10","v":{"$error":"#REF!"}},{"$f":"U9*L10","v":{"$error":"#REF!"}},{"$f":"V9*L10","v":{"$error":"#REF!"}},{"$f":"W9*$L10","v":{"$error":"#REF!"}},{"$f":"X9*$L10","v":{"$error":"#REF!"}},{"$f":"Y9*$L10","v":{"$error":"#REF!"}},{"$f":"Z9*$L10","v":{"$error":"#REF!"}},{"$f":"AA9*$L10","v":{"$error":"#REF!"}},{"$f":"AB9*$L10","v":{"$error":"#REF!"}},{"$f":"AC9*$L10","v":{"$error":"#REF!"}},{"$f":"AD9*$L10","v":{"$error":"#REF!"}},{"$f":"AE9*$L10","v":{"$error":"#REF!"}},{"$f":"AF9*$L10","v":{"$error":"#REF!"}},{"$error":"#REF!"},0,null,null,null,null,null,0,null,null,null,null,null,null,null,null,null,null,null,{"$f":"nerr((AX10+AY10)/(BC10-AH10-AU10-AX10-AY10-AM10))","v":{"$error":"#NAME?"}},0,null,{"$error":"#REF!"},null,null,{"$f":"nerr((BD10+BE10)/BC10)","v":{"$error":"#NAME?"}},{"$f":"nerr((BC10-BC9)/BC9)","v":{"$error":"#NAME?"}},null,null,null,0,0,null,0,{"$f":"nerr((BL10-BL9)/BL9)","v":{"$error":"#NAME?"}}]
[null,"2018 план",3.6999999999999998E-2,{"$f":"#REF!","v":{"$error":"#REF!"}},{"$error":"#REF!"},{"$f":"#REF!","v":{"$error":"#REF!"}},{"$f":"#REF!","v":{"$error":"#REF!"}},{"$f":"#REF!","v":{"$error":"#REF!"}},{"$f":"#REF!","v":{"$error":"#REF!"}},{"$f":"IF(E10=0,0,(E11-E10)/E10*K11)","v":{"$error":"#REF!"}},0.75,{"$f":"(1+C11)*(1-D11)*(1+J11)","v":{"$error":"#REF!"}},{"$error":"#REF!"},{"$error":"#REF!"},{"$error":"#REF!"},{"$error":"#REF!"},{"$error":"#REF!"},{"$error":"#REF!"},{"$error":"#REF!"},{"$error":"#REF!"},{"$error":"#REF!"},{"$error":"#REF!"},{"$error":"#REF!"},{"$error":"#REF!"},{"$error":"#REF!"},{"$error":"#REF!"},{"$error":"#REF!"},{"$error":"#REF!"},{"$error":"#REF!"},{"$error":"#REF!"},{"$error":"#REF!"},{"$error":"#REF!"},{"$error":"#REF!"},0,null,null,null,null,null,0,null,null,null,null,null,null,null,null,null,null,null,{"$f":"nerr((AX11+AY11)/(BC11-AH11-AU11-AX11-AY11-AM11))","v":{"$error":"#NAME?"}},0,null,{"$error":"#REF!"},null,null,{"$f":"nerr((BD11+BE11)/BC11)","v":{"$error":"#NAME?"}},{"$f":"nerr((BC11-BC10)/BC10)","v":{"$error":"#NAME?"}},null,null,null,0,0,null,0,{"$f":"nerr((BL11-BL10)/BL10)","v":{"$error":"#NAME?"}}]
[null,"2019 план",0.04,{"$f":"#REF!","v":{"$error":"#REF!"}},{"$error":"#REF!"},{"$f":"#REF!","v":{"$error":"#REF!"}},{"$f":"#REF!","v":{"$error":"#REF!"}},{"$f":"#REF!","v":{"$error":"#REF!"}},{"$f":"#REF!","v":{"$error":"#REF!"}},{"$f":"IF(E11=0,0,(E12-E11)/E11*K12)","v":{"$error":"#REF!"}},0.75,{"$f":"(1+C12)*(1-D12)*(1+J12)","v":{"$error":"#REF!"}},{"$f":"SUM(N12:O12)","v":{"$error":"#REF!"}},{"$error":"#REF!"},{"$error":"#REF!"},{"$error":"#REF!"},{"$error":"#REF!"},{"$error":"#REF!"},{"$error":"#REF!"},{"$error":"#REF!"},{"$error":"#REF!"},{"$error":"#REF!"},{"$error":"#REF!"},{"$error":"#REF!"},{"$error":"#REF!"},{"$error":"#REF!"},{"$error":"#REF!"},{"$error":"#REF!"},{"$error":"#REF!"},{"$error":"#REF!"},{"$error":"#REF!"},{"$error":"#REF!"},{"$error":"#REF!"},{"$error":"#REF!"},{"$f":"#REF!","v":{"$error":"#REF!"}},{"$f":"#REF!","v":{"$error":"#REF!"}},{"$f":"#REF!","v":{"$error":"#REF!"}},{"$f":"#REF!","v":{"$error":"#REF!"}},{"$f":"#REF!","v":{"$error":"#REF!"}},{"$error":"#REF!"},{"$f":"#REF!","v":{"$error":"#REF!"}},{"$f":"#REF!","v":{"$error":"#REF!"}},{"$f":"#REF!+#REF!","v":{"$error":"#REF!"}},{"$f":"#REF!","v":{"$error":"#REF!"}},{"$f":"#REF!","v":{"$error":"#REF!"}},{"$f":"#REF!","v":{"$error":"#REF!"}},{"$f":"AX12/0.8*0.2","v":{"$error":"#REF!"}},{"$f":"#REF!","v":{"$error":"#REF!"}},{"$f":"#REF!","v":{"$error":"#REF!"}},{"$f":"#REF!","v":{"$error":"#REF!"}},{"$f":"#REF!","v":{"$error":"#REF!"}},{"$f":"((AX12+AY12)/(BC12-AH12-AU12-AX12-AY12-AM12))","v":{"$error":"#REF!"}},{"$error":"#REF!"},{"$f":"#REF!","v":{"$error":"#REF!"}},{"$error":"#REF!"},{"$f":"BC12*E16","v":{"$error":"#REF!"}},{"$f":"BC12-BD12","v":{"$error":"#REF!"}},{"$f":"((BD12+BE12)/BC12)","v":{"$error":"#REF!"}},{"$f":"nerr((BC12-BC11)/BC11)","v":{"$error":"#NAME?"}},{"$f":"#REF!","v":{"$error":"#REF!"}},{"$f":"#REF!","v":{"$error":"#REF!"}},{"$f":"#REF!","v":{"$error":"#REF!"}},{"$error":"#REF!"},{"$error":"#REF!"},{"$f":"#REF!","v":{"$error":"#REF!"}},{"$error":"#REF!"},{"$f":"nerr((BL12-BL11)/BL11)","v":{"$error":"#NAME?"}},{"$f":"#REF!","v":{"$error":"#REF!"}},{"$f":"#REF!","v":{"$error":"#REF!"}},{"$f":"#REF!","v":{"$error":"#REF!"}},{"$f":"#REF!","v":{"$error":"#REF!"}}]
[]
[]
[null,null,null,"разбивка на полугодия"]
[null,null,null,"2019 год"]
["Затраты сетевых организаций в 2019 году МИНИМУМ"]
[null,null,null,"2019 год",null,null,"ПРОВЕРКА"]
[null,null,null,"1 полугодие","2 полугодие","год","1 полугодие","2 полугодие","год"]
["1","Покупная энергия на компенсацию потерь без учета потерь ФСК","тыс.руб",{"$f":"#REF!","v":{"$error":"#REF!"}},{"$f":"#REF!","v":{"$error":"#REF!"}},{"$f":"#REF!","v":{"$error":"#REF!"}},{"$f":"D20-BM12","v":{"$error":"#REF!"}},{"$f":"E20-BN12","v":{"$error":"#REF!"}},{"$f":"F20-BL12","v":{"$error":"#REF!"}}]
["1.1","объем потерь в сетях ","млн.кВт.ч",{"$f":"#REF!","v":{"$error":"#REF!"}},{"$f":"#REF!","v":{"$error":"#REF!"}},{"$f":"#REF!","v":{"$error":"#REF!"}},null,null,{"$f":"BI12-F21","v":{"$error":"#REF!"}}]
["23","Неподконтрольные расходы (за исключением платы ФСК, амортизации ОС и прибыли на капитальные вложения)","тыс.руб",{"$f":"D63-D74-D76-D64","v":{"$error":"#REF!"}},{"$f":"E63-E74-E76-E64","v":{"$error":"#REF!"}},{"$f":"E22+D22","v":{"$error":"#REF!"}},null,null,{"$f":"F22-BA12-AH12-AW12-AX12","v":{"$error":"#REF!"}}]
["24","Операционные (подконтрольные ) расходы","тыс.руб",{"$f":"D47","v":{"$error":"#REF!"}},{"$f":"E47","v":{"$error":"#REF!"}},{"$f":"E23+D23","v":{"$error":"#REF!"}},null,null,{"$f":"F23-AG12","v":{"$error":"#REF!"}}]
[null,"в том числе:"]
["24.1","Затраты на оплату труда","тыс.руб",{"$f":"D48","v":{"$error":"#REF!"}},{"$f":"E48","v":{"$error":"#REF!"}},{"$error":"#REF!"},null,null,{"$f":"F25-P12","v":{"$error":"#REF!"}}]
[null,"в том числе:",null,null,null,null,null,null,null,null,null,null,null,null,null,null,null,null," "]
["24.1.1","на ремонтную программу","тыс.руб"]
["24.2","Ремонтная программа без учета оплаты труда и ЕСН","тыс.руб",{"$f":"D50","v":{"$error":"#REF!"}},{"$f":"E50","v":{"$error":"#REF!"}},{"$error":"#REF!"},null,null,{"$f":"F28-R12","v":{"$error":"#REF!"}}]
["25","Амортизация ОС","тыс.руб",{"$f":"D64","v":{"$error":"#REF!"}},{"$f":"E64","v":{"$error":"#REF!"}},{"$error":"#REF!"},null,null,{"$f":"F29-AW12","v":{"$error":"#REF!"}}]
["26","Прибыль на капитальные вложения","тыс.руб",{"$f":"D76","v":{"$error":"#REF!"}},{"$f":"E76","v":{"$error":"#REF!"}},{"$error":"#REF!"},null,null,{"$f":"F30-AX12","v":{"$error":"#REF!"}}]
["27","Выпадающие доходы (за исключением выпадающих доходов по п.87 Основ ценообразования)","тыс.руб",{"$f":"D79","v":{"$error":"#REF!"}},{"$f":"E79","v":{"$error":"#REF!"}},{"$error":"#REF!"},null,null,{"$f":"F31-BB12","v":{"$error":"#REF!"}}]
[]
["28","Товарная продукция","тыс.руб",{"$f":"D20+D22+D23+D29+D30+D31","v":{"$error":"#REF!"}},{"$f":"E20+E22+E23+E29+E30+E31","v":{"$error":"#REF!"}},{"$error":"#REF!"},null,null,{"$f":"F33-BC12-BL12","v":{"$error":"#REF!"}}]
[null,"в том числе:"]
["28.1","расходы на реализацию инвестиционной программы (с налогами)","тыс.руб",{"$f":"D37+D38","v":{"$error":"#REF!"}},{"$f":"E37+E38","v":{"$error":"#REF!"}},{"$error":"#REF!"}]
[null,"    в том числе:"]
["28.1.1","инвестиционная программа","тыс.руб",{"$f":"D76","v":{"$error":"#REF!"}},{"$f":"E76","v":{"$error":"#REF!"}},{"$error":"#REF!"}]
["28.1.2","налог на прибыль","тыс.руб",{"$f":"D72","v":{"$error":"#REF!"}},{"$f":"E72","v":{"$error":"#REF!"}},{"$error":"#REF!"}]
["29","Полезный отпуск потребителям","млн.кВт.ч",{"$f":"#REF!-#REF!","v":{"$error":"#REF!"}},{"$f":"#REF!-#REF!","v":{"$error":"#REF!"}},{"$error":"#REF!"}]
["29.1","справочно: генераторное напряжение","млн.кВт.ч"]
["30","Средний тариф с учетом ГН","коп/кВт.ч"]
["31","Объем условных единиц","у.е.",{"$f":"E12","v":{"$error":"#REF!"}},{"$f":"D42","v":{"$error":"#REF!"}},{"$f":"E42","v":{"$error":"#REF!"}},null,null,{"$f":"E12-E42","v":{"$error":"#REF!"}}]
["32","Стоимость обслуживания у.е.","тыс.руб"]
[]
[null,null,null,"2019 год"]
[null,null,null,"1 полугодие","2 полугодие","год"]
["1.","Подконтрольные расходы",null,{"$f":"F47*$E$16","v":{"$error":"#REF!"}},{"$f":"F47*$F$16","v":{"$error":"#REF!"}},{"$f":"#REF!","v":{"$error":"#REF!"}}]
["1.1.","Расходы на оплату труда",null,{"$error":"#REF!"},{"$error":"#REF!"},{"$f":"#REF!","v":{"$error":"#REF!"}}]
["1.2","Материалы",null,{"$error":"#REF!"},{"$error":"#REF!"},{"$f":"#REF!","v":{"$error":"#REF!"}}]
["1.3","Ремонт основных фондов",null,{"$error":"#REF!"},{"$error":"#REF!"},{"$f":"#REF!","v":{"$error":"#REF!"}}]
["1.4","Другие обоснованные подконтрольные расходы, в том числе:",null,{"$error":"#REF!"},{"$error":"#REF!"},{"$f":"#REF!","v":{"$error":"#REF!"}}]
["1.4.1","Работы и услуги производственного характера",null,{"$error":"#REF!"},{"$error":"#REF!"},{"$f":"#REF!","v":{"$error":"#REF!"}}]
["1.4.2","Работы и услуги непроизводственного характера",null,{"$error":"#REF!"},{"$error":"#REF!"},{"$f":"#REF!","v":{"$error":"#REF!"}}]
["1.4.3","Обеспечение нормальных условий труда и техники безопасности",null,{"$error":"#REF!"},{"$error":"#REF!"},{"$f":"#REF!","v":{"$error":"#REF!"}}]
["1.4.4.","Расходы на командировки",null,{"$error":"#REF!"},{"$error":"#REF!"},{"$f":"#REF!","v":{"$error":"#REF!"}}]
["1.4.5","Расходы на обучение персонала",null,{"$error":"#REF!"},{"$error":"#REF!"},{"$f":"#REF!","v":{"$error":"#REF!"}}]
["1.4.6","Расходы на страхование",null,{"$error":"#REF!"},{"$error":"#REF!"},{"$f":"#REF!","v":{"$error":"#REF!"}}]
["1.4.7","Расходы на услуги банков",null,{"$error":"#REF!"},{"$error":"#REF!"},{"$f":"#REF!","v":{"$error":"#REF!"}}]
["1.4.8","Прочие обоснованные подконтрольные расходы",null,{"$error":"#REF!"},{"$error":"#REF!"},{"$f":"#REF!","v":{"$error":"#REF!"}}]
["1.5","Расходы из прибыли, в том числе:",null,{"$error":"#REF!"},{"$error":"#REF!"},{"$f":"#REF!","v":{"$error":"#REF!"}}]
["1.5.1","Расходы по коллективным договорам",null,{"$error":"#REF!"},{"$error":"#REF!"},{"$f":"#REF!","v":{"$error":"#REF!"}}]
["1.5.2","Прочие обоснованные расходы из прибыли",null,{"$error":"#REF!"},{"$error":"#REF!"},{"$f":"#REF!","v":{"$error":"#REF!"}}]
["2.","Неподконтрольные расходы",null,{"$error":"#REF!"},{"$error":"#REF!"},{"$f":"#REF!","v":{"$error":"#REF!"}}]
["2.1.","Амортизация основных средств",null,{"$error":"#REF!"},{"$error":"#REF!"},{"$f":"#REF!","v":{"$error":"#REF!"}}]
["2.2.","Страховые взносы",null,{"$error":"#REF!"},{"$error":"#REF!"},{"$f":"#REF!","v":{"$error":"#REF!"}}]
["2.3.","Расходы на оплату услуг организаций, осуществляющие регулируемые виды деятельности",null,{"$error":"#REF!"},{"$error":"#REF!"},{"$f":"#REF!","v":{"$error":"#REF!"}}]
["2.4.","Налоги и сборы, в том числе:",null,{"$error":"#REF!"},{"$error":"#REF!"},{"$f":"#REF!","v":{"$error":"#REF!"}}]
["2.4.1.","Плата за землю",null,{"$error":"#REF!"},{"$error":"#REF!"},{"$f":"#REF!","v":{"$error":"#REF!"}}]
["2.4.2.","Транспортный налог",null,{"$error":"#REF!"},{"$error":"#REF!"},{"$f":"#REF!","v":{"$error":"#REF!"}}]
["2.4.3.","Налог на имущество",null,{"$error":"#REF!"},{"$error":"#REF!"},{"$f":"#REF!","v":{"$error":"#REF!"}}]
["2.4.4.","Плата за негативное воздействие на окружающую среду",null,{"$error":"#REF!"},{"$error":"#REF!"},{"$f":"#REF!","v":{"$error":"#REF!"}}]
["2.4.5.","Налог на прибыль",null,{"$error":"#REF!"},{"$error":"#REF!"},{"$f":"#REF!","v":{"$error":"#REF!"}}]
["2.5.","Плата за аренду имущества",null,{"$error":"#REF!"},{"$error":"#REF!"},{"$f":"#REF!","v":{"$error":"#REF!"}}]
["2.6.","Оплата услуг ОАО \"ФСК ЕЭС\"",null,{"$error":"#REF!"},{"$error":"#REF!"},{"$f":"#REF!","v":{"$error":"#REF!"}}]
["2.7.","Прочие обоснованные неподконтрольные расходы",null,{"$error":"#REF!"},{"$error":"#REF!"},{"$f":"#REF!","v":{"$error":"#REF!"}}]
["2.8.","Капитальные вложения производственного характера из прибыли",null,{"$error":"#REF!"},{"$error":"#REF!"},{"$f":"#REF!","v":{"$error":"#REF!"}}]
["2.9.","Расходы, связанные с компенсацией выпадающих доходов от льготного технологического присоединения",null,{"$error":"#REF!"},{"$error":"#REF!"},{"$f":"#REF!","v":{"$error":"#REF!"}}]
["2.10.","Расходы на возврат и обслуживание долгосрочных заемных средств, направляемых для финансирования капитальных вложений ",null,{"$error":"#REF!"},{"$error":"#REF!"},{"$f":"#REF!","v":{"$error":"#REF!"}}]
["3.","Корректировка необходимой валовой выручки ",null,{"$error":"#REF!"},{"$error":"#REF!"},{"$f":"#REF!","v":{"$error":"#REF!"}}]
["3.1.","Корректировка подконтрольных расходов",null,{"$error":"#REF!"},{"$error":"#REF!"},{"$f":"#REF!","v":{"$error":"#REF!"}}]
["3.2.","Корректировка неподконтрольных расходов",null,{"$error":"#REF!"},{"$error":"#REF!"},{"$f":"#REF!","v":{"$error":"#REF!"}}]
["3.3.","Корректировка НВВ с учетом изменения полезного отпуска и цен на электрическую энергию ",null,{"$error":"#REF!"},{"$error":"#REF!"},{"$f":"#REF!","v":{"$error":"#REF!"}}]
["3.4.","Корректировка необходимой валовой выручки по доходам от осуществления регулируемой деятельности",null,{"$error":"#REF!"},{"$error":"#REF!"},{"$f":"#REF!","v":{"$error":"#REF!"}}]
["3.5.","Корректировка НВВ в связи с изменением (неисполнением) инвестиционной программы ",null,{"$error":"#REF!"},{"$error":"#REF!"},{"$f":"#REF!","v":{"$error":"#REF!"}}]
["3.6.","Корректировка НВВ с учетом надежности и качества оказываемых услуг ",null,{"$error":"#REF!"},{"$error":"#REF!"},{"$f":"#REF!","v":{"$error":"#REF!"}}]
["4.","ИТОГО необходимая валовая выручка на содержание электрических сетей",null,{"$error":"#REF!"},{"$error":"#REF!"},{"$f":"#REF!","v":{"$error":"#REF!"}}]

{"sheet":"МУ","index":9,"n_rows":91,"n_cols":2,"rows_kept":91,"cut":false,"hidden":true,"merged":[[0,0,0,1]]}
["Приказ Федеральной службы по тарифам от 17 февраля 2012 г. N 98-э \"Об утверждении Методических указаний по расчету тарифов на услуги по передаче электрической энергии, устанавливаемых с применением метода долгосрочной индексации необходимой валовой выручки\""]
[]
[null,", (2),"]
[]
[null,"где:"]
[null,"i - год долгосрочного периода регулирования (i>1);"]
[null," - подконтрольные расходы, учтенные соответственно в базовом и в i-1 году долгосрочного периода регулирования (тыс. руб.);"]
[null,"Уровень подконтрольных расходов на первый (базовый) год долгосрочного периода регулирования (базовый уровень подконтрольных расходов) устанавливается регулирующими органами в соответствии с пунктом 12 Методических указаний методом экономически обоснованных расходов. При установлении базового уровня подконтрольных расходов учитываются результаты анализа обоснованности расходов регулируемой организации, понесенных в предыдущем периоде регулирования, и результаты проведения контрольных мероприятий;"]
[null," - индекс потребительских цен, определенный на i-й год долгосрочного периода регулирования;"]
[null," - коэффициент эластичности подконтрольных расходов по количеству активов, необходимых для осуществления регулируемой деятельности, в отношении регулируемых организаций, осуществляющих передачу электрической энергии, равный 0,75;"]
[null," - количество условных единиц соответственно в i-том и (i-1)-ом году долгосрочного периода регулирования;"]
[null," - индекс эффективности подконтрольных расходов, устанавливаемый регулирующими органами в соответствии с методическими указаниями по определению базового уровня операционных, подконтрольных расходов территориальных сетевых организаций, необходимых для осуществления регулируемой деятельности, и индекса эффективности операционных, подконтрольных расходов с применением метода сравнения аналогов;"]
[null," - неподконтрольные расходы, определяемые методом экономически обоснованных расходов, соответственно для базового и i-го года долгосрочного периода регулирования, включающие в себя:"]
[null,"- расходы на финансирование капитальных вложений из прибыли (в соответствии с пунктом 32 Основ ценообразования) (тыс. руб.). Указанные расходы с учетом возврата заемных средств, направляемых на финансирование капитальных вложений, не могут превышать 12% от необходимой валовой выручки регулируемой организации, определенной в соответствии с настоящими Методическими указаниями без учета расходов на оплату технологического расхода (потерь) электрической энергии, расходов на финансирование капитальных вложений из прибыли и налога на прибыль на капитальные вложения, расходов на оплату услуг по передаче электрической энергии по единой национальной (общероссийской) электрической сети, оказываемых ОАО \"Федеральная сетевая компания Единой энергетической системы\", расходов на оплату услуг по передаче электрической энергии по сетям территориальных сетевых организаций, возврата заемных средств, направляемых на финансирование капитальных вложений, расходов, связанных с арендой объектов электросетевого хозяйства, используемого для осуществления регулируемой деятельности, в том числе по договорам финансовой аренды (лизинга);"]
[null,"- оплату налогов на прибыль, имущество и иных налогов (в соответствии с пунктами 20 и 28 Основ ценообразования) (тыс. руб.);"]
[null,"- амортизацию основных средств (в соответствии с пунктом 27 Основ ценообразования) (тыс. руб.);"]
[null,"- расходы на возврат и обслуживание долгосрочных заемных средств, в том числе направляемых на финансирование капитальных вложений в соответствии с пунктом 32 Основ ценообразования;"]
[null,"- расходы, связанные с компенсацией выпадающих доходов, предусмотренных пунктом 87 Основ ценообразования (тыс. руб.);"]
[null,"- расходы на оплату продукции (услуг) организаций, осуществляющих регулируемые виды деятельности, рассчитанные исходя из размера тарифов, установленных в отношении товаров и услуг указанных организаций (тыс. руб.);"]
[null,"- прочие расходы, учитываемые при установлении тарифов на i-й год долгосрочного периода регулирования (тыс. руб.);"]
[null," - результаты деятельности регулируемой организации до перехода к регулированию тарифов на услуги по передаче электрической энергии в форме установления долгосрочных параметров регулирования деятельности такой организации, учитываемые в базовом году долгосрочного периода регулирования в соответствии с пунктами 7 и 32 Основ ценообразования (тыс. руб.)."]
[null," соответствует величине , определенной для первого года долгосрочного периода регулирования;"]
[]
[null," - расходы i-го года долгосрочного периода регулирования, связанные с компенсацией незапланированных расходов (со знаком \"плюс\") или полученного избытка (со знаком \"минус\"), выявленных в том числе по итогам последнего истекшего года долгосрочного периода регулирования, за который известны фактические значения параметров расчета тарифов, связанных с необходимостью корректировки валовой выручки регулируемых организаций, указанной в пункте 9, а также расходы в соответствии с пунктом 10 Методических указаний (тыс.руб.) и корректировка необходимой валовой выручки в соответствии с пунктом 32 Основ ценообразования."]
[null,"Величина , определяется в соответствии с формулой (3)."]
[]
[null," - понижающий (повышающий) коэффициент, корректирующий необходимую валовую выручку сетевой организации с учетом надежности и качества производимых (реализуемых) товаров (услуг) в году i, определяемый в процентах в соответствии с Методическими указаниями по расчету и применению понижающих (повышающих) коэффициентов, позволяющих обеспечить соответствие уровня тарифов, установленных для организаций, осуществляющих регулируемую деятельность, уровню надежности и качества поставляемых товаров и оказываемых услуг, утвержденными приказом ФСТ России от 26 декабря 2010 г. N 254-э/1 (зарегистрирован Минюстом России 13 ноября 2010 г., регистрационный N 18951)."]
[null,"ГАРАНТ:"]
[null,"По-видимому, в тексте предыдущего абзаца допущена опечатка. Дату названного приказа следует читать как \"26 октября 2010 г.\""]
[]
[null,", (3),"]
[]
[null,"где:"]
[null," - расходы i-го года долгосрочного периода регулирования, связанные с компенсацией незапланированных расходов (со знаком \"плюс\") или полученного избытка (со знаком \"минус\"), выявленных по итогам последнего истекшего года долгосрочного периода регулирования, за который известны фактические значения параметров расчета тарифов, связанных с необходимостью корректировки валовой выручки регулируемых организаций, указанной в пункте 9 Методических указаний, а также расходы в соответствии с пунктом 10 Методических указаний (тыс.руб.). Указанные расходы определяются следующим образом:"]
[]
[null,", (4),"]
[]
[null,"где:"]
[null," - корректировка подконтрольных расходов в связи с изменением планируемых параметров расчета тарифов. Не определяется для случаев, если год (i-2) является первым годом долгосрочного периода регулирования;"]
[null," - корректировка неподконтрольных расходов исходя из фактических значений указанного параметра;"]
[null," - корректировка необходимой валовой выручки по доходам от осуществления регулируемой деятельности;"]
[null," - корректировка необходимой валовой выручки регулируемой организации с учетом изменения полезного отпуска и цен на электрическую энергию."]
[]
[null," (5),"]
[]
[null," (6),"]
[]
[null," (7)."]
[null,",(7.1)"]
[]
[null,"где:"]
[null," - необходимая валовая выручка в части содержания электрических сетей, установленная на год i-2;"]
[null," - фактический объем выручки за услуги по передаче электрической энергии за год i-2 в части содержания электрических сетей (с учетом фактически недополученной выручки по зависящим от сетевой организации причинам), определяемый исходя из установленных на год i-2 тарифов на услуги по передаче электрической энергии без учета ставки, используемой для целей определения расходов на оплату нормативных потерь электрической энергии при ее передаче по электрическим сетям, и фактических объемов оказанных услуг;"]
[]
[null,"Корректировка с учетом изменения полезного отпуска и цен на электрическую энергию рассчитывается по следующей формуле:"]
[]
[null," (8),"]
[]
[null,"где:"]
[null," - фактическое количество условных единиц, относящихся к регулируемой организации соответственно в (i-2)-ом и (i-3)-ем году долгосрочного периода регулирования;"]
[null," - индекс эффективности подконтрольных расходов, установленный в процентах;"]
[null," - фактические значения индекса потребительских цен в году i-2;"]
[null," - индекс изменения количества активов, установленный в процентах на год i при расчете долгосрочных тарифов;"]
[null," - фактическая и плановая величина неподконтрольных расходов (за исключением расходов на финансирование капитальных вложений);"]
[null," - прогнозный объем отпуска электрической энергии в сеть территориальной сетевой организации, определенный регулирующими органами на (i-2)-той году долгосрочного периода регулирования;"]
[null," - фактический объем отпуска электрической энергии в сеть территориальной сетевой организации, определяемый регулирующими органами в (i-2)-том году долгосрочного периода регулирования;"]
[null," - уровень технологического расхода (потерь) электрической энергии, указанная# в пункте 6 Методических указаний;"]
[null," - прогнозная цена покупки потерь электрической энергии в сетях (с учетом мощности) в году i-2, учтенная при установлении тарифа на услуги по передаче электрической энергии по электрическим сетям, принадлежащим на праве собственности или ином законном основании территориальным сетевым организациям;"]
[null," - фактическая цена покупки потерь электрической энергии в сетях (с учетом мощности) в году i-2."]
[null,"Указанные расходы определяются в том числе с учетом проведения соответствующих контрольных мероприятий."]
[null," - корректировка необходимой валовой выручки на i-тый год долгосрочного периода регулирования, осуществляемая в связи с изменением (неисполнением) инвестиционной программы на (i-1)-й год."]
[null,"Величина"]
[null," определяется по формуле (9):"]
[]
[null," (9),"]
[]
[null,"где:"]
[null," - расчетная величина собственных средств регулируемой организации для финансирования инвестиционной программы, учтенная при установлении тарифов в году i-2, которая не может принимать отрицательные значения;"]
[null," - плановый размер размер финансирования инвестиционной программы, представляющей собой совокупность инвестиционных проектов, утвержденной (скорректированной) в установленном порядке на год (i-2) до его начала, за счет собственных средств (выручки от реализации товаров (услуг) по регулируемым ценам (тарифам)) без НДС;"]
[null,"- объем фактического финансирования инвестиционной программы, представляющей собой совокупность инвестиционных проектов, утвержденной (скорректированной) в установленном порядке на год (i-2) до его начала, за счет собственных средств (выручки от реализации товаров (услуг) по регулируемым ценам (тарифам)) без НДС в году (i-2) долгосрочного периода регулирования."]
[null,"При j=1 используется фактический процент исполнения инвестиционной программы за 9 месяцев (i-2) года. Указанная корректировка осуществляется при отклонении исполнения инвестиционной программы более чем на 10%;"]
[null," - учтенная при расчете тарифов на (i-1) год корректировка необходимой валовой выручки на (i-2)-ой год долгосрочного периода регулирования, осуществленная в связи с изменением (неисполнением) инвестиционной программы за истекший период на (i-2)-го года по результатам 9 месяцев."]
[null,"Абзацы 58 - 63 утратили силу с 9 января 2018 г. - Приказ ФАС России от 24 августа 2017 г. N 1108/17"]
[null,"Информация об изменениях:"]
[null," - коэффициент корректировки необходимой валовой выручки с учетом надежности и качества оказываемых услуг в году i, осуществляемой в соответствии с Основами ценообразования, и определяемый в процентах;"]
[null," - учитываемая в году i величина распределяемых в целях сглаживания изменения тарифов исключаемых необоснованных доходов и расходов, выявленных в том числе по результатам проверки хозяйственной деятельности регулируемой организации, учитываемых экономически обоснованных расходов, не учтенных при установлении регулируемых цен (тарифов) на тот период регулирования, в котором они понесены, или доходов, недополученных при осуществлении регулируемой деятельности в этот период регулирования, а также результаты деятельности регулируемой организации за предыдущие годы до начала долгосрочного периода регулирования методом долгосрочной индексации необходимой валовой выручки или до изменения метода регулирования согласно абзацу второму пункта 39 Основ ценообразования."]
[null,"Распределение в целях сглаживания изменения тарифов исключаемых необоснованных доходов и расходов, выявленных в том числе по результатам проверки хозяйственной деятельности регулируемой организации, учитываемых экономически обоснованных расходов, не учтенных при установлении регулируемых цен (тарифов) на тот период регулирования, в котором они понесены, или доходов, недополученных при осуществлении регулируемой деятельности в этот период регулирования, осуществляется на период не более 5 лет."]
[null,"Распределяемые в целях сглаживания изменения тарифов исключаемые необоснованные доходы и расходы, выявленные в том числе по результатам проверки хозяйственной деятельности регулируемой организации, учитываемые экономически обоснованные расходы, не учтенные при установлении регулируемых цен (тарифов) на тот период регулирования, в котором они понесены, или доходы, недополученные при осуществлении регулируемой деятельности в этот период регулирования, включаются в необходимую валовую выручку регулируемой организации с учетом параметров прогноза социально-экономического развития Российской Федерации."]
[null," может включать в себя в том числе величину перераспределения необходимой валовой выручки, осуществлявшегося в целях сглаживания роста тарифов при применении метода доходности инвестированного капитала до перехода к регулированию методом долгосрочной индексации необходимой валовой выручки."]
[null," может принимать как положительные, так и отрицательные значения."]
[null," не определяется для территориальных сетевых организаций, необходимая валовая выручка которых с учетом расходов на оплату потерь и оплату услуг других территориальных сетевых организаций за 3 последних периода регулирования не превысила 10 процентов суммарной необходимой валовой выручки территориальных сетевых организаций, учтенной при установлении единых (котловых) тарифов на услуги по передаче электрической энергии, за исключением результатов деятельности регулируемой организации за предыдущие годы до начала долгосрочного периода регулирования методом долгосрочной индексации необходимой валовой выручки или до изменения метода регулирования согласно абзацу второму пункта 39 Основ ценообразования."]

{"sheet":"Выбор оценочного балла","index":10,"n_rows":8,"n_cols":3,"rows_kept":8,"cut":false,"hidden":true,"merged":[[1,0,1,2],[3,0,3,1],[3,2,4,2],[6,0,6,1]]}
[]
["Выбор оценочного балла"]
[]
["Принимаемое значение (Ф / П * 100, % )                             (гр.4 форм 2.1-2.3) ",null,"Оценочный балл                                                           (гр.6 форм 2.1 - 2.3)"]
["прямая зависимость                     (гр.5 форм 2.1 - 2.3)","обратная  зависимость                   (гр.5 форм 2.1 - 2.3)"]
["гр.4 форм 2.1-2.3 < 80%","гр.4 форм 2.1-2.3 > 120 %","3 балла - для всех пунктов форм 2.1 - 2.3                                                                                    кроме:                                                                 0,75 баллов -  для п. 2, 5, 6 формы 2.2                 0,3 балла - для п. 3,4,7 формы 2.2"]
["80 % ≤ гр.4 форм 2.1-2.3 ≤ 120 %",null,"2 балла - для всех пунктов форм 2.1 - 2.3                                                                               кроме:                                                                 0,5 баллов -  для п. 2, 5, 6 формы 2.2                    0,2 балла - для п. 3,4,7 формы 2.2"]
["гр.4 форм 2.1-2.3 > 120 %","гр.4 форм 2.1-2.3 < 80%","1 балл - для всех пунктов форм 2.1 - 2.3                                                                               кроме:                                                                 0,25 баллов -  для п. 2, 5, 6 формы 2.2                 0,1 балла - для п. 3,4,7 формы 2.2"]